bitfinex-derivatives/quotes_BTCF0:USTF0_20241125
["timestamp","ask_amount","ask_price","bid_price","bid_amount"]
[1732503078086,0.18250738,97573.0,97572.0,0.0004]
[1732503081085,0.13631738,97573.0,97572.0,0.0004]
[1732503081278,0.00011738,97573.0,97572.0,0.0004]
[1732503081472,0.13631738,97573.0,97572.0,0.0004]
[1732503082186,0.00011738,97573.0,97572.0,0.0004]
[1732503082778,0.13631738,97573.0,97572.0,0.0004]
[1732503083081,0.47142885,97580.0,97575.0,0.051188]
[1732503083082,0.15338469,97576.0,97575.0,0.051188]
[1732503083277,0.1362,97578.0,97575.0,0.051188]
[1732503083585,0.1362,97578.0,97577.0,0.0004]
[1732503083780,0.13752,97580.0,97577.0,0.0004]
[1732503083982,0.1322,97580.0,97578.0,0.051187]
[1732503084177,9.152e-05,97579.0,97578.0,0.051187]
[1732503085885,0.05127752,97579.0,97578.0,0.082587]
[1732503086584,9.152e-05,97579.0,97578.0,0.32713385]
[1732503086991,9.152e-05,97579.0,97578.0,0.082587]
[1732503087282,9.152e-05,97579.0,97578.0,0.3771516]
[1732503087675,9.152e-05,97579.0,97578.0,0.7379516]
[1732503088083,0.05127752,97579.0,97578.0,0.37913157]
[1732503088379,0.05127752,97579.0,97578.0,0.35742955]
[1732503088778,0.05127752,97579.0,97578.0,0.34825269]
[1732503088981,0.05127752,97579.0,97578.0,0.051187]
[1732503089487,9.152e-05,97579.0,97578.0,0.051187]
[1732503090681,0.051185,97582.0,97579.0,0.05309448]
[1732503090883,0.04927652,97582.0,97580.0,0.051186]
[1732503091385,0.04978103,97581.0,97580.0,0.051186]
[1732503091888,0.04686032,97581.0,97580.0,0.051186]
[1732503092077,7.929e-05,97581.0,97580.0,0.051186]
[1732503092280,0.187342,97588.0,97581.0,0.00492071]
[1732503092488,0.187342,97588.0,97587.0,0.051182]
[1732503092688,0.187342,97588.0,97587.0,0.051582]
[1732503093190,0.1874193,97588.0,97587.0,0.051582]
[1732503093391,0.0512593,97588.0,97587.0,0.051582]
[1732503093591,0.04133859,97588.0,97587.0,0.051582]
[1732503094485,0.04133859,97588.0,97587.0,0.0004]
[1732503096891,0.2555893,97588.0,97587.0,0.0004]
[1732503098488,0.04133859,97588.0,97587.0,0.0004]
[1732503099382,0.04133859,97588.0,97587.0,0.18421151]
[1732503099988,0.17749859,97588.0,97587.0,0.18421151]
[1732503100386,0.36185547,97588.0,97587.0,0.0004]
[1732503103100,0.17749859,97588.0,97587.0,0.0004]
[1732503103488,0.36186038,97588.0,97587.0,0.0004]
[1732503104388,0.17749859,97588.0,97587.0,0.0004]
[1732503104892,0.36186038,97588.0,97587.0,0.0004]
[1732503105396,0.17749859,97588.0,97587.0,0.0004]
[1732503105604,0.17749859,97588.0,97587.0,0.18421151]
[1732503105805,7.73e-05,97588.0,97587.0,0.18421151]
[1732503106093,0.13616,97589.0,97588.0,0.0561147]
[1732503106393,0.18436179,97592.0,97588.0,0.0004]
[1732503106597,0.20328001,97607.0,97588.0,0.0004]
[1732503106598,0.18436179,97596.0,97594.0,0.051178]
[1732503106790,0.13616,97598.0,97597.0,0.051177]
[1732503106990,0.13124203,97598.0,97597.0,0.051177]
[1732503107283,8.203e-05,97598.0,97597.0,0.051577]
[1732503107490,8.203e-05,97598.0,97597.0,0.0004]
[1732503108086,0.0448543,97598.0,97597.0,0.0004]
[1732503109105,0.04497221,97598.0,97597.0,0.0004]
[1732503110598,0.03997221,97598.0,97597.0,0.0004]
[1732503113392,0.00011791,97598.0,97597.0,5.09e-05]
[1732503115302,0.21518425,97598.0,97597.0,5.09e-05]
[1732503115601,0.00011791,97598.0,97597.0,5.09e-05]
[1732503117399,0.00011791,97598.0,97597.0,6.08e-06]
[1732503120200,0.30751791,97598.0,97592.0,0.00013015]
[1732503120401,0.411979,97593.0,97592.0,0.00013015]
[1732503120702,0.548139,97593.0,97592.0,0.00013015]
[1732503120904,0.82695668,97593.0,97592.0,0.00013015]
[1732503121104,0.548139,97593.0,97592.0,0.00013015]
[1732503121498,0.187339,97593.0,97592.0,0.00013015]
[1732503122101,0.187339,97593.0,97592.0,0.18395748]
[1732503122302,0.187339,97593.0,97592.0,0.00013015]
[1732503122498,0.187339,97593.0,97592.0,0.18394232]
[1732503123108,0.54654884,97595.0,97593.0,0.005]
[1732503123314,0.48695,97595.0,97594.0,0.18381217]
[1732503123607,0.48695,97595.0,97594.0,0.0004]
[1732503124004,0.13616,97595.0,97594.0,0.0004]
[1732503125598,0.28977224,97595.0,97594.0,0.0004]
[1732503126611,0.28977224,97595.0,97594.0,0.24551252]
[1732503127407,0.28977224,97595.0,97594.0,0.0004]
[1732503128207,0.15361224,97595.0,97594.0,0.0004]
[1732503128905,0.14861224,97595.0,97594.0,0.0004]
[1732503129104,0.2341239,97595.0,97594.0,0.0004]
[1732503130706,0.18434883,97595.0,97594.0,0.0004]
[1732503130907,0.54514883,97595.0,97594.0,0.0004]
[1732503131109,0.3608,97595.0,97594.0,0.0004]
[1732503131415,0.36837561,97595.0,97594.0,0.0004]
[1732503134415,0.3608,97595.0,97594.0,0.0004]
[1732503135718,0.41058012,97595.0,97594.0,0.0004]
[1732503135911,0.04978012,97595.0,97594.0,0.0004]
[1732503136105,0.41058012,97595.0,97594.0,0.0004]
[1732503136305,0.44358012,97595.0,97594.0,0.0004]
[1732503139114,1.94358012,97595.0,97594.0,0.0004]
[1732503139816,1.8938,97595.0,97594.0,0.0004]
[1732503140813,1.94358344,97595.0,97594.0,0.0004]
[1732503141018,2.07970344,97595.0,97594.0,0.0004]
[1732503141316,1.94358344,97595.0,97594.0,0.0004]
[1732503141519,2.07970344,97595.0,97594.0,0.0004]
[1732503143523,0.051178,97594.0,97592.0,0.00013015]
[1732503143716,0.45543672,97594.0,97592.0,0.00013015]
[1732503143917,0.26686288,97593.0,97592.0,0.00013015]
[1732503144116,0.05178342,97593.0,97592.0,0.00013015]
[1732503144416,0.05178342,97593.0,97568.0,0.18374941]
[1732503144609,0.051191,97569.0,97568.0,0.18374941]
[1732503144812,0.051191,97569.0,97563.0,0.29630652]
[1732503144813,0.051192,97568.0,97567.0,0.18388916]
[1732503145016,0.051193,97566.0,97565.0,0.18542636]
[1732503145330,0.051193,97566.0,97565.0,0.0015372]
[1732503145331,0.46378213,97566.0,97565.0,0.0015372]
[1732503147021,0.50370613,97566.0,97565.0,0.0015372]
[1732503148817,0.50370613,97566.0,97565.0,0.00016965]
[1732503151728,0.63986613,97566.0,97565.0,0.00016965]
[1732503152025,0.63486613,97566.0,97565.0,0.00016965]
[1732503152522,0.81927539,97566.0,97565.0,0.00016965]
[1732503152721,0.68311539,97566.0,97565.0,0.00016965]
[1732503152926,0.63486613,97566.0,97565.0,0.00016965]
[1732503153821,0.49370613,97566.0,97562.0,0.24511252]
[1732503154024,0.44391698,97566.0,97563.0,0.24511252]
[1732503154538,0.44391698,97566.0,97564.0,0.24511252]
[1732503154826,0.44391698,97566.0,97563.0,0.24511252]
[1732503155415,0.44391698,97566.0,97564.0,0.24511252]
[1732503155820,0.44391698,97566.0,97563.0,0.24511252]
[1732503156027,0.44391698,97566.0,97564.0,0.24511252]
[1732503156532,0.44391698,97566.0,97561.0,0.051195]
[1732503156724,0.44391698,97566.0,97565.0,0.24531915]
[1732503156921,0.44391698,97566.0,97561.0,0.051195]
[1732503157125,0.45391698,97566.0,97565.0,0.24532385]
[1732503157434,0.051194,97564.0,97560.0,0.24532385]
[1732503157632,0.051196,97561.0,97560.0,0.24532385]
[1732503158035,0.051194,97565.0,97560.0,0.24536224]
[1732503158219,0.051196,97561.0,97560.0,0.24536224]
[1732503158623,0.411996,97561.0,97560.0,0.24536224]
[1732503158827,0.56567001,97561.0,97560.0,0.24536224]
[1732503159124,0.051197,97559.0,97558.0,0.0326]
[1732503159628,0.05319698,97559.0,97558.0,0.0326]
[1732503163225,0.05019698,97559.0,97558.0,0.0326]
[1732503165733,0.04919698,97559.0,97558.0,0.0326]
[1732503166740,0.04919698,97559.0,97558.0,0.2166534]
[1732503166921,0.09799073,97559.0,97558.0,0.216651]
[1732503167427,0.09799073,97559.0,97558.0,0.0326]
[1732503168835,0.09799073,97559.0,97558.0,0.083797]
[1732503169730,0.09799034,97559.0,97558.0,0.083797]
[1732503169929,0.09299034,97559.0,97558.0,0.083797]
[1732503171327,0.09299034,97559.0,97558.0,0.26778708]
[1732503172129,0.11347843,97559.0,97558.0,0.26778708]
[1732503172735,0.11347843,97559.0,97558.0,0.26779439]
[1732503172938,0.11347843,97559.0,97558.0,0.083797]
[1732503173136,0.11347843,97559.0,97558.0,0.26780074]
[1732503174437,0.06368507,97559.0,97558.0,0.083797]
[1732503175738,0.051198,97556.0,97555.0,0.30624338]
[1732503175930,0.051199,97555.0,97554.0,0.30624338]
[1732503176131,0.00199998,97556.0,97553.0,0.00011951]
[1732503176342,0.051199,97554.0,97553.0,0.00011951]
[1732503176639,0.05319898,97554.0,97553.0,0.00011951]
[1732503177737,0.05319898,97554.0,97553.0,0.05131951]
[1732503179540,0.05319898,97554.0,97553.0,0.00011951]
[1732503180130,0.05319898,97554.0,97553.0,0.05131951]
[1732503181743,0.10299476,97554.0,97553.0,0.05131951]
[1732503182647,0.05319898,97554.0,97553.0,0.29690803]
[1732503182840,0.05319898,97554.0,97553.0,0.05131951]
[1732503183445,0.10299411,97554.0,97553.0,0.05131951]
[1732503184941,0.10299411,97554.0,97553.0,0.00011951]
[1732503185143,0.10299411,97554.0,97553.0,0.18436752]
[1732503185346,0.10299411,97554.0,97553.0,0.00011951]
[1732503185840,0.05319898,97554.0,97553.0,0.00011951]
[1732503186040,0.10299411,97554.0,97553.0,0.18436752]
[1732503186349,0.28740973,97554.0,97553.0,0.00011951]
[1732503186548,0.46379411,97554.0,97553.0,0.00011951]
[1732503188037,0.59987411,97554.0,97553.0,0.00011951]
[1732503189543,0.70376637,97554.0,97553.0,0.24570803]
[1732503189849,0.55007898,97554.0,97553.0,0.24570803]
[1732503190245,0.59987898,97554.0,97553.0,0.00011951]
[1732503191246,0.55007898,97554.0,97553.0,0.24570803]
[1732503191747,0.59987791,97554.0,97553.0,0.00011951]
[1732503192049,0.6396273,97554.0,97553.0,0.18445762]
[1732503192257,0.6396273,97554.0,97553.0,0.00011951]
[1732503192844,0.63962964,97554.0,97553.0,0.00011951]
[1732503193244,0.82405451,97554.0,97553.0,0.18446969]
[1732503193552,0.63962964,97554.0,97553.0,0.00011951]
[1732503194541,0.82405451,97554.0,97553.0,0.00011951]
[1732503194753,0.63962964,97554.0,97553.0,0.00011951]
[1732503197558,0.82406854,97554.0,97553.0,0.00011951]
[1732503198060,0.63962964,97554.0,97553.0,0.00011951]
[1732503202457,0.63962964,97554.0,97553.0,0.18447149]
[1732503202653,0.63962964,97554.0,97553.0,0.18447204]
[1732503202846,0.63962964,97554.0,97553.0,0.18448255]
[1732503203051,0.63962964,97554.0,97553.0,0.00011951]
[1732503203648,0.45235064,97554.0,97553.0,0.00011951]
[1732503203857,0.40760125,97554.0,97553.0,0.35883951]
[1732503204061,0.51148627,97554.0,97553.0,0.35883951]
[1732503204356,0.12293254,97556.0,97554.0,0.00199]
[1732503204558,0.04979171,97555.0,97554.0,0.051199]
[1732503204760,0.10366219,97556.0,97554.0,0.358719]
[1732503204952,0.00199998,97566.0,97564.0,0.051194]
[1732503204953,0.18443136,97565.0,97564.0,0.051194]
[1732503205152,0.18443136,97565.0,97553.0,0.30721182]
[1732503205153,0.051195,97562.0,97561.0,0.24563861]
[1732503205362,0.046195,97562.0,97560.0,0.051196]
[1732503205560,0.046595,97562.0,97560.0,0.051196]
[1732503205758,0.00775399,97561.0,97560.0,0.051196]
[1732503205953,0.00775399,97561.0,97560.0,0.358716]
[1732503206154,0.00775399,97561.0,97560.0,0.051196]
[1732503207663,0.00775399,97561.0,97560.0,0.29685941]
[1732503208062,0.00775399,97561.0,97560.0,0.24566341]
[1732503208265,0.051197,97558.0,97557.0,0.24566341]
[1732503208453,0.10874157,97558.0,97556.0,0.24566341]
[1732503208660,0.10874257,97557.0,97555.0,0.24566341]
[1732503208967,0.051598,97557.0,97556.0,0.24566341]
[1732503209163,0.05940139,97557.0,97555.0,0.051199]
[1732503209357,0.05940139,97557.0,97555.0,0.29688736]
[1732503209358,0.051598,97557.0,97555.0,0.29688736]
[1732503209564,0.0078034,97556.0,97555.0,0.29688736]
[1732503209859,0.0575959,97556.0,97555.0,0.051199]
[1732503210065,0.05759611,97556.0,97555.0,0.051199]
[1732503210462,0.05759626,97556.0,97555.0,0.051199]
[1732503210655,0.05759626,97556.0,97555.0,0.29688736]
[1732503211072,0.0078034,97556.0,97555.0,0.29688736]
[1732503211666,0.0078034,97556.0,97555.0,0.051199]
[1732503211864,0.0078034,97556.0,97554.0,0.30709231]
[1732503212059,0.0078034,97555.0,97554.0,0.30709231]
[1732503212260,0.0082034,97555.0,97554.0,0.30709231]
[1732503212469,0.0082034,97555.0,97553.0,0.30721182]
[1732503212664,0.0078034,97554.0,97553.0,0.30721182]
[1732503212867,0.0082034,97554.0,97553.0,0.00011951]
[1732503216673,0.00838446,97554.0,97553.0,0.00011951]
[1732503220171,0.05817814,97554.0,97553.0,0.00011951]
[1732503222477,0.00838446,97554.0,97553.0,0.24584678]
[1732503222673,0.00838446,97554.0,97553.0,0.00011951]
[1732503223000,0.05817768,97554.0,97553.0,0.00011951]
[1732503223693,0.05827507,97554.0,97553.0,0.00011951]
[1732503226591,0.00848185,97554.0,97553.0,0.00011951]
[1732503227192,0.0004,97554.0,97553.0,0.00011951]
[1732503227498,0.00844595,97554.0,97553.0,0.00011951]
[1732503227685,0.00844594,97554.0,97553.0,0.00011951]
[1732503228190,0.00846238,97554.0,97553.0,0.00011951]
[1732503230300,0.50526238,97554.0,97553.0,0.00011951]
[1732503230597,0.19426122,97554.0,97553.0,0.00011951]
[1732503230894,0.18926122,97554.0,97553.0,0.00011951]
[1732503233494,0.24046022,97554.0,97553.0,0.00011951]
[1732503234595,0.24045999,97554.0,97553.0,0.00011951]
[1732503234997,0.37368281,97554.0,97553.0,0.05131951]
[1732503235294,0.05326099,97554.0,97553.0,0.05131951]
[1732503235998,0.10445999,97554.0,97553.0,0.05131951]
[1732503236195,0.10445999,97554.0,97553.0,0.23558007]
[1732503236593,0.10445999,97554.0,97553.0,0.05131951]
[1732503236898,0.10345999,97554.0,97553.0,0.05131951]
[1732503237492,0.10345999,97554.0,97553.0,0.23556774]
[1732503238206,0.10099761,97554.0,97553.0,0.23556774]
[1732503238499,0.28541201,97554.0,97553.0,0.00011951]
[1732503238694,0.10099761,97554.0,97553.0,0.00011951]
[1732503239605,0.09699761,97554.0,97553.0,0.00011951]
[1732503240304,0.051201,97551.0,97549.0,0.18422171]
[1732503240505,0.051202,97549.0,97548.0,0.18422171]
[1732503240806,0.18442538,97549.0,97546.0,0.18422171]
[1732503241000,0.051203,97547.0,97546.0,0.18422171]
[1732503241200,0.05019861,97547.0,97544.0,0.00012862]
[1732503241402,0.05019861,97547.0,97546.0,0.18426171]
[1732503241403,0.051603,97547.0,97546.0,0.18426171]
[1732503241597,0.051203,97547.0,97544.0,0.05133262]
[1732503241901,0.0309,97548.0,97544.0,0.00012862]
[1732503241902,0.412004,97545.0,97544.0,0.00012862]
[1732503244907,0.56569642,97545.0,97544.0,0.00012862]
[1732503245303,0.412004,97545.0,97544.0,0.24584282]
[1732503245500,0.4618089,97545.0,97544.0,0.00012862]
[1732503246006,0.051207,97540.0,97539.0,0.2457142]
[1732503246200,0.051208,97538.0,97536.0,0.2457142]
[1732503246402,0.2370119,97540.0,97534.0,0.2457142]
[1732503246403,0.051209,97536.0,97534.0,0.2457142]
[1732503246600,0.051209,97536.0,97526.0,0.30714068]
[1732503246601,0.41060981,97535.0,97526.0,0.30714068]
[1732503246804,0.41060981,97535.0,97521.0,0.30714068]
[1732503246805,0.15371942,97529.0,97521.0,0.30714068]
[1732503247003,0.051216,97522.0,97521.0,0.30714068]
[1732503247302,0.051216,97522.0,97521.0,0.5972876]
[1732503247303,0.17459606,97522.0,97521.0,0.5972876]
[1732503247512,0.051217,97520.0,97519.0,0.30714068]
[1732503248105,0.0004,97522.0,97516.0,0.30714068]
[1732503248106,0.051219,97517.0,97516.0,0.30714068]
[1732503248306,0.051219,97517.0,97515.0,0.30714068]
[1732503248601,0.0004,97520.0,97514.0,0.30723608]
[1732503248801,0.05122,97515.0,97514.0,9.54e-05]
[1732503249005,0.05951791,97515.0,97514.0,9.54e-05]
[1732503250504,0.21323733,97515.0,97514.0,9.54e-05]
[1732503250904,0.05951791,97515.0,97514.0,9.54e-05]
[1732503251102,0.41697685,97515.0,97514.0,9.54e-05]
[1732503251808,0.10933685,97515.0,97514.0,9.54e-05]
[1732503253302,0.05951791,97515.0,97514.0,9.54e-05]
[1732503254008,0.10933784,97515.0,97514.0,9.54e-05]
[1732503256211,0.41697784,97515.0,97514.0,0.18456722]
[1732503256409,0.41697784,97515.0,97514.0,9.54e-05]
[1732503257010,0.051223,97508.0,97507.0,0.18447182]
[1732503257204,0.051226,97504.0,97500.0,0.1]
[1732503257408,0.05785738,97503.0,97500.0,0.1]
[1732503257716,0.0004,97501.0,97500.0,0.1]
[1732503258008,0.10948438,97501.0,97500.0,0.1]
[1732503258600,0.10948438,97501.0,97500.0,0.2845284]
[1732503258807,0.29399785,97501.0,97500.0,0.1]
[1732503259004,0.29399502,97501.0,97500.0,0.2845284]
[1732503259715,0.10948438,97501.0,97500.0,0.1]
[1732503260006,0.14896309,97501.0,97494.0,0.00153835]
[1732503260206,0.59654064,97495.0,97494.0,0.00153835]
[1732503260405,0.60628738,97495.0,97494.0,0.00153835]
[1732503260605,0.60628738,97495.0,97488.0,0.0001193]
[1732503260606,0.051233,97489.0,97488.0,0.0001193]
[1732503260805,0.10105293,97489.0,97488.0,0.0001193]
[1732503261013,0.244112,97489.0,97488.0,0.0001193]
[1732503261309,0.10145293,97489.0,97488.0,0.0001193]
[1732503261610,0.36588375,97489.0,97470.0,0.30714068]
[1732503261808,0.15371943,97471.0,97464.0,0.30714068]
[1732503262113,0.12337422,97465.0,97464.0,0.30762859]
[1732503262413,0.12337422,97465.0,97464.0,0.58908214]
[1732503262414,0.18263597,97465.0,97464.0,0.58908214]
[1732503262616,0.05966175,97465.0,97464.0,0.30762859]
[1732503263215,0.05966175,97465.0,97464.0,0.58887519]
[1732503263604,0.05966175,97465.0,97464.0,0.30762859]
[1732503264013,0.18263606,97465.0,97464.0,0.28118179]
[1732503264414,0.05966175,97465.0,97464.0,0.28118179]
[1732503265918,0.05966175,97465.0,97464.0,0.33242879]
[1732503267005,0.00841575,97465.0,97464.0,0.33242879]
[1732503267211,0.09230907,97465.0,97464.0,0.77626879]
[1732503267407,0.12297431,97472.0,97465.0,0.00492807]
[1732503267612,0.12297431,97475.0,97474.0,0.051241]
[1732503267816,0.05124,97477.0,97475.0,0.00492807]
[1732503268109,0.05124,97477.0,97476.0,0.05204]
[1732503268310,0.05124,97477.0,97476.0,0.0008]
[1732503268518,0.05132919,97477.0,97476.0,0.0008]
[1732503269017,0.10116773,97477.0,97476.0,0.0008]
[1732503271013,0.2856239,97477.0,97476.0,0.0008]
[1732503271320,0.10116773,97477.0,97476.0,0.0008]
[1732503271714,0.14179631,97477.0,97476.0,0.0008]
[1732503273823,0.31633119,97477.0,97476.0,0.0008]
[1732503274118,0.13187824,97477.0,97476.0,0.0008]
[1732503275120,0.31633119,97477.0,97476.0,0.0008]
[1732503275423,0.13187824,97477.0,97476.0,0.0008]
[1732503275829,0.31630925,97477.0,97476.0,0.0008]
[1732503276127,0.13187824,97477.0,97476.0,0.0008]
[1732503276824,0.31630925,97477.0,97476.0,0.0008]
[1732503277517,0.13187824,97477.0,97476.0,0.0008]
[1732503278320,0.13188085,97477.0,97476.0,0.0008]
[1732503283327,0.13188114,97477.0,97476.0,0.0008]
[1732503286427,0.16278114,97477.0,97476.0,0.0008]
[1732503286819,0.47054114,97477.0,97459.0,0.30768682]
[1732503287121,0.17459764,97460.0,97459.0,0.00010775]
[1732503287324,0.17459764,97460.0,97459.0,0.28272787]
[1732503287527,0.17459764,97460.0,97459.0,0.59036377]
[1732503287824,0.051649,97460.0,97459.0,0.00010775]
[1732503290723,0.051248,97462.0,97461.0,0.051248]
[1732503290919,0.046628,97462.0,97461.0,0.051248]
[1732503291123,0.046628,97462.0,97461.0,0.0004]
[1732503293431,0.05438361,97462.0,97461.0,0.0004]
[1732503294041,0.10422679,97462.0,97461.0,0.0004]
[1732503298243,0.09647118,97462.0,97461.0,0.0004]
[1732503300135,0.11697979,97462.0,97461.0,0.0004]
[1732503300429,0.25305979,97462.0,97461.0,0.0004]
[1732503300936,0.11197979,97462.0,97461.0,0.0004]
[1732503301335,0.1197644,97462.0,97461.0,0.0004]
[1732503302136,0.06992122,97462.0,97461.0,0.0004]
[1732503302741,0.11976534,97462.0,97461.0,0.0004]
[1732503304240,0.02429322,97462.0,97461.0,0.412448]
[1732503304445,0.01650861,97462.0,97461.0,0.412448]
[1732503304644,0.13946004,97462.0,97461.0,1.00098531]
[1732503304945,0.19070711,97462.0,97461.0,1.00098271]
[1732503305145,0.1907087,97462.0,97461.0,0.72007899]
[1732503305443,0.06775661,97462.0,97461.0,0.35927899]
[1732503305640,0.06775661,97462.0,97461.0,0.051648]
[1732503308143,0.01650861,97462.0,97461.0,0.051648]
[1732503308745,0.01650861,97462.0,97461.0,0.35927899]
[1732503309272,0.01650861,97462.0,97461.0,0.29775486]
[1732503309545,0.01650861,97462.0,97461.0,0.051648]
[1732503309546,0.0663495,97462.0,97461.0,0.051648]
[1732503310337,0.0663495,97462.0,97461.0,0.29775486]
[1732503310747,0.0663495,97462.0,97461.0,0.051648]
[1732503311244,0.15365272,97462.0,97461.0,0.29775486]
[1732503311440,0.15365272,97462.0,97461.0,0.051648]
[1732503311646,0.15365272,97467.0,97462.0,0.005]
[1732503311846,0.04983731,97476.0,97475.0,0.051241]
[1732503312046,0.04483731,97476.0,97475.0,0.412041]
[1732503312349,0.04483731,97476.0,97475.0,0.412441]
[1732503313257,0.04483731,97476.0,97475.0,0.445141]
[1732503315550,0.15363755,97479.0,97475.0,0.445141]
[1732503315757,0.15363755,97485.0,97478.0,0.051239]
[1732503315948,0.15363755,97490.0,97489.0,0.051233]
[1732503316148,0.15363755,97495.0,97491.0,0.051232]
[1732503316348,0.15363755,97496.0,97494.0,0.051231]
[1732503316644,0.1229357,97498.0,97497.0,0.051229]
[1732503316847,0.1229357,97500.0,97498.0,0.00987259]
[1732503317150,0.11306311,97501.0,97499.0,0.33939994]
[1732503317352,0.10815312,97501.0,97500.0,0.28777194]
[1732503317544,0.10815312,97501.0,97500.0,0.28817194]
[1732503317940,0.10825013,97501.0,97500.0,0.0004]
[1732503318248,0.05132401,97501.0,97500.0,0.0004]
[1732503319653,9.701e-05,97501.0,97500.0,0.0004]
[1732503320152,0.02060018,97501.0,97500.0,0.0004]
[1732503321759,0.01559018,97501.0,97500.0,0.0004]
[1732503322553,0.01569756,97501.0,97500.0,0.0004]
[1732503324052,0.00010738,97501.0,97500.0,0.0004]
[1732503324253,0.15363755,97504.0,97502.0,0.051227]
[1732503324453,0.3608,97512.0,97510.0,0.051222]
[1732503324655,0.35090738,97512.0,97510.0,0.051222]
[1732503324957,0.21509257,97518.0,97516.0,0.051219]
[1732503325150,0.02049954,97517.0,97516.0,0.051219]
[1732503325351,0.07183486,97517.0,97516.0,0.051219]
[1732503325755,0.05122,97515.0,97506.0,0.24601274]
[1732503326055,0.1844414,97513.0,97510.0,0.051222]
[1732503326261,0.051224,97508.0,97504.0,0.29723774]
[1732503326458,0.051224,97508.0,97492.0,0.39988326]
[1732503326459,0.051226,97503.0,97498.0,0.24601274]
[1732503326668,0.051226,97503.0,97501.0,0.051227]
[1732503327165,0.04982094,97502.0,97501.0,0.051227]
[1732503327755,0.2356674,97503.0,97501.0,0.051227]
[1732503328059,0.04982121,97502.0,97501.0,0.051227]
[1732503331560,0.051226,97503.0,97501.0,0.34268136]
[1732503331777,0.051226,97503.0,97502.0,0.29145436]
[1732503332069,0.051226,97503.0,97502.0,0.59935418]
[1732503332251,0.051226,97503.0,97502.0,0.59935812]
[1732503332568,0.051224,97507.0,97506.0,0.051224]
[1732503332858,0.051224,97507.0,97506.0,0.051624]
[1732503333458,0.051224,97507.0,97506.0,0.0004]
[1732503338359,0.358904,97507.0,97506.0,0.0004]
[1732503338666,0.40872606,97507.0,97506.0,0.0004]
[1732503340953,0.12154532,97507.0,97506.0,0.0004]
[1732503341358,0.42922532,97507.0,97506.0,0.0004]
[1732503341965,0.12154532,97507.0,97506.0,0.0004]
[1732503342463,0.2561699,97507.0,97506.0,0.0004]
[1732503342658,0.12154532,97507.0,97506.0,0.0004]
[1732503342858,0.42922532,97507.0,97506.0,0.0004]
[1732503344260,0.12154532,97507.0,97506.0,0.0004]
[1732503345064,0.05123,97495.0,97493.0,0.24598457]
[1732503345253,0.05123,97495.0,97490.0,0.00153841]
[1732503345254,0.051231,97493.0,97490.0,0.00153841]
[1732503345458,0.051232,97491.0,97490.0,0.00153841]
[1732503345658,0.24344299,97491.0,97490.0,0.00153841]
[1732503345959,0.29327461,97491.0,97490.0,0.00153841]
[1732503346574,0.10883529,97491.0,97490.0,0.00153841]
[1732503346759,0.05900492,97491.0,97490.0,0.00153841]
[1732503346959,0.10883529,97491.0,97490.0,0.00153841]
[1732503348966,0.1088555,97491.0,97490.0,0.00153841]
[1732503349267,0.1088556,97491.0,97490.0,0.00153841]
[1732503349768,0.10106237,97491.0,97490.0,0.00153841]
[1732503350070,0.10886045,97491.0,97490.0,0.00153841]
[1732503350465,0.10886045,97491.0,97490.0,0.00013991]
[1732503350859,0.32403975,97491.0,97490.0,0.00013991]
[1732503351264,0.36426953,97491.0,97490.0,0.00013991]
[1732503352369,0.14909023,97491.0,97490.0,0.00013991]
[1732503352663,0.31443775,97491.0,97490.0,0.00013991]
[1732503352859,0.14909023,97491.0,97490.0,0.00013991]
[1732503353570,0.36427007,97491.0,97490.0,0.00013991]
[1732503353965,0.14909023,97491.0,97490.0,0.00013991]
[1732503354285,0.14909165,97491.0,97490.0,0.00013991]
[1732503354757,0.28369674,97491.0,97490.0,0.00013991]
[1732503354964,0.14909165,97491.0,97490.0,0.00013991]
[1732503355169,0.33353079,97491.0,97490.0,0.00013991]
[1732503355371,0.28625165,97491.0,97490.0,0.00013991]
[1732503355569,0.2784556,97491.0,97490.0,0.00013991]
[1732503355760,0.28627095,97491.0,97490.0,0.00013991]
[1732503356262,0.59399095,97491.0,97490.0,0.00013991]
[1732503356466,0.051239,97478.0,97477.0,0.24604191]
[1732503356665,0.55701435,97478.0,97477.0,0.24604191]
[1732503356869,0.60725073,97478.0,97476.0,0.12521682]
[1732503357070,0.05765173,97477.0,97476.0,0.12521682]
[1732503357265,0.16190341,97477.0,97476.0,0.12521682]
[1732503357568,0.05805439,97477.0,97476.0,0.12521682]
[1732503359963,0.05805373,97477.0,97476.0,0.12521682]
[1732503360466,0.05798884,97477.0,97476.0,0.12521682]
[1732503360666,0.05023851,97477.0,97476.0,0.12521682]
[1732503361460,0.05023851,97477.0,97474.0,0.24604191]
[1732503361461,0.05124,97476.0,97474.0,0.24604191]
[1732503361662,0.04983816,97475.0,97473.0,0.051241]
[1732503361863,0.0004,97475.0,97474.0,0.0932]
[1732503362065,0.04983618,97475.0,97474.0,0.0932]
[1732503362266,0.23426002,97477.0,97474.0,0.0932]
[1732503362473,0.15370706,97475.0,97474.0,0.39053167]
[1732503362673,0.3608,97486.0,97474.0,0.39053167]
[1732503362674,0.18442384,97489.0,97476.0,0.0004]
[1732503362864,0.02050396,97491.0,97486.0,0.24605025]
[1732503363069,0.01550396,97491.0,97488.0,0.0004]
[1732503363374,0.01049396,97491.0,97490.0,0.0004]
[1732503363577,0.01049396,97491.0,97490.0,0.051633]
[1732503363763,0.0004,97494.0,97490.0,0.0004]
[1732503363963,0.3608,97506.0,97494.0,0.0046]
[1732503363964,0.23565084,97501.0,97494.0,0.0046]
[1732503364172,0.046227,97501.0,97499.0,0.051228]
[1732503364375,0.036627,97501.0,97500.0,0.0004]
[1732503367767,0.04438388,97501.0,97500.0,0.0004]
[1732503371775,0.04438388,97501.0,97500.0,0.2464198]
[1732503371776,0.00775688,97501.0,97500.0,0.2464198]
[1732503371965,0.00775688,97501.0,97500.0,0.0004]
[1732503372173,0.00374688,97501.0,97500.0,0.0004]
[1732503372376,0.00374688,97501.0,97500.0,0.30796282]
[1732503372681,0.00374688,97501.0,97500.0,0.29231639]
[1732503372981,0.00374688,97501.0,97500.0,0.30789151]
[1732503373378,0.00374688,97501.0,97500.0,0.59935564]
[1732503373568,0.00374688,97501.0,97500.0,0.30789151]
[1732503374276,0.00374688,97501.0,97500.0,0.0004]
[1732503376575,0.06714688,97501.0,97500.0,0.24641133]
[1732503376879,0.06714688,97501.0,97500.0,0.0004]
[1732503377564,0.11322509,97501.0,97500.0,0.0004]
[1732503379982,0.11322401,97501.0,97500.0,0.0004]
[1732503384079,0.12123838,97501.0,97500.0,0.0004]
[1732503385681,0.1212206,97501.0,97500.0,0.0004]
[1732503388479,0.1192306,97501.0,97500.0,0.0004]
[1732503389976,0.11923165,97501.0,97500.0,0.0004]